[Event "*** SCC Grand Prix: Titled Tuesday Blitz"]
[Site "Chess.com"]
[Date "2020.07.07"]
[Round "2"]
[White "Alkhoori90"]
[Black "KingCrusher275"]
[Result "1-0"]
[WhiteElo "2236"]
[BlackElo "2431"]
[TimeControl "180+1"]
[EndTime "10:16:24 PDT"]
[Termination "Alkhoori90 won by resignation"]

1. e4 {[%clk 0:03:00.4]} 1... c5 {[%clk 0:02:59.8]} 2. f4 {[%clk 0:03:00.5]}
2... e6 {[%clk 0:02:59.9]} 3. Nf3 {[%clk 0:03:00.9]} 3... d5 {[%clk 0:02:59.5]}
4. Bb5+ {[%clk 0:03:01.1]} 4... Nc6 {[%clk 0:02:56.8]} 5. Bxc6+ {[%clk
0:03:01.3]} 5... bxc6 {[%clk 0:02:56.8]} 6. d3 {[%clk 0:03:01.9]} 6... Nf6
{[%clk 0:02:56.4]} 7. Nc3 {[%clk 0:03:02]} 7... Be7 {[%clk 0:02:55.6]} 8. O-O
{[%clk 0:03:02.1]} 8... O-O {[%clk 0:02:55.4]} 9. e5 {[%clk 0:02:57]} 9... Nd7
{[%clk 0:02:54.8]} 10. Bd2 {[%clk 0:02:54]} 10... Rb8 {[%clk 0:02:52.8]} 11. Rb1
{[%clk 0:02:51.6]} 11... Ba6 {[%clk 0:02:45.5]} 12. a3 {[%clk 0:02:49.3]} 12...
Qc7 {[%clk 0:02:39.6]} 13. Kh1 {[%clk 0:02:48.4]} 13... Rb7 {[%clk 0:02:38.5]}
14. Ne2 {[%clk 0:02:32.6]} 14... Rfb8 {[%clk 0:02:34.8]} 15. Bc1 {[%clk
0:02:20]} 15... c4 {[%clk 0:02:32.3]} 16. d4 {[%clk 0:02:18.4]} 16... Bxa3
{[%clk 0:02:31.9]} 17. Ra1 {[%clk 0:02:11.9]} 17... c3 {[%clk 0:02:17.1]} 18.
bxa3 {[%clk 0:01:56.5]} 18... c5 {[%clk 0:02:06]} 19. dxc5 {[%clk 0:01:51.8]}
19... Nxc5 {[%clk 0:02:05.6]} 20. Be3 {[%clk 0:01:48.5]} 20... Ne4 {[%clk
0:02:00.7]} 21. Re1 {[%clk 0:01:39.9]} 21... Rb2 {[%clk 0:01:50.1]} 22. Ng3
{[%clk 0:01:36.3]} 22... Nc5 {[%clk 0:01:42.1]} 23. Bxc5 {[%clk 0:01:29.6]}
23... Qxc5 {[%clk 0:01:41.8]} 24. Nd4 {[%clk 0:01:29.9]} 24... h6 {[%clk
0:01:36.7]} 25. f5 {[%clk 0:01:28.5]} 25... exf5 {[%clk 0:01:36.3]} 26. Ngxf5
{[%clk 0:01:28.6]} 26... Bc8 {[%clk 0:01:28.7]} 27. Qg4 {[%clk 0:01:19.5]} 27...
g6 {[%clk 0:01:28.5]} 28. Nxh6+ {[%clk 0:01:18]} 28... Kg7 {[%clk 0:01:25.9]}
29. Qf4 {[%clk 0:01:09]} 29... R8b7 {[%clk 0:01:14]} 30. Ng4 {[%clk 0:01:07.2]}
30... Bxg4 {[%clk 0:01:06.9]} 31. Qxg4 {[%clk 0:01:08.1]} 1-0

[Event "*** SCC Grand Prix: Titled Tuesday Blitz"]
[Site "Chess.com"]
[Date "2020.07.07"]
[Round "2"]
[White "Korchmar_Vasiliy"]
[Black "mortngabriel"]
[Result "1-0"]
[WhiteElo "2607"]
[BlackElo "2315"]
[TimeControl "180+1"]
[EndTime "10:16:35 PDT"]
[Termination "Korchmar_Vasiliy won by resignation"]

1. e4 {[%clk 0:03:00.9]} 1... c5 {[%clk 0:02:59.6]} 2. Nf3 {[%clk 0:03:00.8]}
2... e6 {[%clk 0:03:00]} 3. d4 {[%clk 0:03:00.7]} 3... cxd4 {[%clk 0:03:00.9]}
4. Nxd4 {[%clk 0:03:01.2]} 4... Nf6 {[%clk 0:03:01.8]} 5. Nc3 {[%clk 0:03:01.1]}
5... Bb4 {[%clk 0:03:02.4]} 6. Bd3 {[%clk 0:03:00.1]} 6... Nc6 {[%clk
0:02:52.8]} 7. Nxc6 {[%clk 0:02:53.6]} 7... bxc6 {[%clk 0:02:53.7]} 8. e5 {[%clk
0:02:53.2]} 8... Nd5 {[%clk 0:02:52.9]} 9. Qg4 {[%clk 0:02:49]} 9... O-O {[%clk
0:02:52.6]} 10. Bh6 {[%clk 0:02:42.2]} 10... g6 {[%clk 0:02:53]} 11. O-O {[%clk
0:02:27.1]} 11... Bxc3 {[%clk 0:02:28]} 12. bxc3 {[%clk 0:02:26.9]} 12... Re8
{[%clk 0:02:26.7]} 13. h4 {[%clk 0:02:16.9]} 13... f5 {[%clk 0:02:13.3]} 14.
exf6 {[%clk 0:02:05.8]} 14... Qxf6 {[%clk 0:02:03.8]} 15. h5 {[%clk 0:01:55.6]}
15... Kh8 {[%clk 0:01:04.5]} 16. hxg6 {[%clk 0:01:54.1]} 16... hxg6 {[%clk
0:01:04.5]} 17. Qxg6 {[%clk 0:01:28.2]} 17... Qxg6 {[%clk 0:01:00.8]} 18. Bxg6
{[%clk 0:01:29.1]} 18... Rg8 {[%clk 0:01:00.7]} 19. Bf7 {[%clk 0:01:22.3]} 19...
Rg4 {[%clk 0:00:59.4]} 20. f3 {[%clk 0:01:09.5]} 20... Rc4 {[%clk 0:00:57.5]}
21. Kf2 {[%clk 0:01:03.3]} 21... Rh4 {[%clk 0:00:37.9]} 22. Rh1 {[%clk
0:01:02.2]} 1-0

[Event "*** SCC Grand Prix: Titled Tuesday Blitz"]
[Site "Chess.com"]
[Date "2020.07.07"]
[Round "2"]
[White "AlphaHero0"]
[Black "EvgenyRomanov"]
[Result "0-1"]
[WhiteElo "1960"]
[BlackElo "2617"]
[TimeControl "180+1"]
[EndTime "10:16:38 PDT"]
[Termination "EvgenyRomanov won by resignation"]

1. e4 {[%clk 0:03:00.9]} 1... g6 {[%clk 0:02:56.8]} 2. Nf3 {[%clk 0:03:00.8]}
2... Bg7 {[%clk 0:02:57.7]} 3. d4 {[%clk 0:03:01]} 3... d6 {[%clk 0:02:57.6]} 4.
h3 {[%clk 0:03:01.3]} 4... c5 {[%clk 0:02:55]} 5. dxc5 {[%clk 0:03:00.5]} 5...
Qa5+ {[%clk 0:02:54.4]} 6. Nc3 {[%clk 0:03:00.6]} 6... Bxc3+ {[%clk 0:02:50.5]}
7. bxc3 {[%clk 0:03:01.5]} 7... Qxc3+ {[%clk 0:02:50.5]} 8. Bd2 {[%clk
0:03:01.6]} 8... Qxc5 {[%clk 0:02:50.4]} 9. Bd3 {[%clk 0:03:01.6]} 9... Nf6
{[%clk 0:02:46.9]} 10. Bh6 {[%clk 0:03:01.3]} 10... Qa5+ {[%clk 0:02:44]} 11.
Qd2 {[%clk 0:02:53.1]} 11... Qxd2+ {[%clk 0:02:43.3]} 12. Kxd2 {[%clk
0:02:53.5]} 12... Nbd7 {[%clk 0:02:32]} 13. Nd4 {[%clk 0:02:46.4]} 13... Nc5
{[%clk 0:02:28.8]} 14. f3 {[%clk 0:02:41.5]} 14... Bd7 {[%clk 0:02:26.4]} 15.
Nb5 {[%clk 0:02:00]} 15... O-O-O {[%clk 0:02:15.9]} 16. Bg7 {[%clk 0:01:31]}
16... Nxd3 {[%clk 0:02:13.1]} 17. Nxd6+ {[%clk 0:01:12]} 17... exd6 {[%clk
0:02:05.3]} 18. Bxf6 {[%clk 0:01:09.9]} 18... Nf4 {[%clk 0:01:59.7]} 19. Rhg1
{[%clk 0:00:39.1]} 19... Rhe8 {[%clk 0:01:56.4]} 20. Bxd8 {[%clk 0:00:39]} 20...
Kxd8 {[%clk 0:01:57.3]} 21. h4 {[%clk 0:00:32.5]} 21... h5 {[%clk 0:01:53.2]}
22. g3 {[%clk 0:00:31.9]} 22... Ne6 {[%clk 0:01:53.4]} 23. a4 {[%clk 0:00:19.2]}
23... Kc7 {[%clk 0:01:54.3]} 24. a5 {[%clk 0:00:19]} 24... Bc6 {[%clk
0:01:51.1]} 25. c4 {[%clk 0:00:17]} 25... Nd4 {[%clk 0:01:46.4]} 26. Ke3 {[%clk
0:00:12.3]} 26... Nc2+ {[%clk 0:01:45.3]} 27. Kd3 {[%clk 0:00:11]} 27... Nxa1
{[%clk 0:01:45]} 28. Rxa1 {[%clk 0:00:11.9]} 28... f5 {[%clk 0:01:45]} 29. exf5
{[%clk 0:00:11.1]} 29... gxf5 {[%clk 0:01:45.9]} 0-1

[Event "*** SCC Grand Prix: Titled Tuesday Blitz"]
[Site "Chess.com"]
[Date "2020.07.07"]
[Round "2"]
[White "politeplayer"]
[Black "themind1hunter"]
[Result "1-0"]
[WhiteElo "2234"]
[BlackElo "2430"]
[TimeControl "180+1"]
[EndTime "10:16:39 PDT"]
[Termination "politeplayer won by resignation"]

1. e4 {[%clk 0:03:00.9]} 1... c5 {[%clk 0:02:59.7]} 2. Nf3 {[%clk 0:03:00.2]}
2... d6 {[%clk 0:03:00.1]} 3. d4 {[%clk 0:03:00.6]} 3... cxd4 {[%clk 0:03:00.5]}
4. Nxd4 {[%clk 0:03:01.1]} 4... Nf6 {[%clk 0:03:00.9]} 5. Nc3 {[%clk 0:03:01.3]}
5... a6 {[%clk 0:03:00.8]} 6. Bc4 {[%clk 0:03:01.3]} 6... e6 {[%clk 0:03:00]} 7.
O-O {[%clk 0:03:00.6]} 7... b5 {[%clk 0:02:56.9]} 8. Bb3 {[%clk 0:02:59.8]} 8...
Be7 {[%clk 0:02:54.9]} 9. f4 {[%clk 0:02:58.5]} 9... b4 {[%clk 0:02:52.5]} 10.
e5 {[%clk 0:02:55.6]} 10... dxe5 {[%clk 0:02:45.7]} 11. fxe5 {[%clk 0:02:53]}
11... bxc3 {[%clk 0:02:44.5]} 12. exf6 {[%clk 0:02:50.8]} 12... Bxf6 {[%clk
0:02:45.4]} 13. bxc3 {[%clk 0:02:40.6]} 13... O-O {[%clk 0:02:44.1]} 14. Ba3
{[%clk 0:02:16.5]} 14... Re8 {[%clk 0:02:38.4]} 15. Qf3 {[%clk 0:02:03.7]} 15...
Ra7 {[%clk 0:02:34.1]} 16. Rad1 {[%clk 0:01:57.2]} 16... Qb6 {[%clk 0:02:27.7]}
17. Qh5 {[%clk 0:01:36.7]} 17... e5 {[%clk 0:02:15.4]} 18. Rde1 {[%clk
0:00:58.2]} 18... g6 {[%clk 0:01:31.3]} 19. Qf3 {[%clk 0:00:51.7]} 19... Kg7
{[%clk 0:01:26.2]} 20. Bc5 {[%clk 0:00:40.4]} 20... Qxc5 {[%clk 0:01:12.6]} 21.
Qxf6+ {[%clk 0:00:39.2]} 21... Kh6 {[%clk 0:01:13.5]} 22. Re4 {[%clk 0:00:27.7]}
1-0

[Event "*** SCC Grand Prix: Titled Tuesday Blitz"]
[Site "Chess.com"]
[Date "2020.07.07"]
[Round "2"]
[White "KyrgyzFighter"]
[Black "Shubinkirill2003"]
[Result "0-1"]
[WhiteElo "2315"]
[BlackElo "2612"]
[TimeControl "180+1"]
[EndTime "10:16:40 PDT"]
[Termination "Shubinkirill2003 won by resignation"]

1. c4 {[%clk 0:03:00.9]} 1... e5 {[%clk 0:02:59.7]} 2. Nc3 {[%clk 0:03:01.2]}
2... Nc6 {[%clk 0:02:59.1]} 3. g3 {[%clk 0:03:01.5]} 3... g6 {[%clk 0:02:58.9]}
4. Bg2 {[%clk 0:03:01.8]} 4... Bg7 {[%clk 0:02:59.8]} 5. e3 {[%clk 0:03:02.3]}
5... Nge7 {[%clk 0:03:00.3]} 6. Nge2 {[%clk 0:03:02.9]} 6... d6 {[%clk
0:03:00.8]} 7. O-O {[%clk 0:03:03.5]} 7... O-O {[%clk 0:03:01.3]} 8. d3 {[%clk
0:02:58.1]} 8... Bg4 {[%clk 0:03:00.3]} 9. Rb1 {[%clk 0:02:57.6]} 9... Qd7
{[%clk 0:02:59.7]} 10. b4 {[%clk 0:02:54.6]} 10... Rae8 {[%clk 0:02:58.4]} 11.
Nd5 {[%clk 0:02:48.8]} 11... Nxd5 {[%clk 0:02:47.7]} 12. cxd5 {[%clk 0:02:48.6]}
12... Nd8 {[%clk 0:02:45.9]} 13. e4 {[%clk 0:02:48.8]} 13... Bh3 {[%clk
0:02:45]} 14. Be3 {[%clk 0:02:47.4]} 14... Bxg2 {[%clk 0:02:44.3]} 15. Kxg2
{[%clk 0:02:48.3]} 15... f5 {[%clk 0:02:44.8]} 16. f3 {[%clk 0:02:48.4]} 16...
c6 {[%clk 0:02:37.8]} 17. Qb3 {[%clk 0:02:46.5]} 17... Kh8 {[%clk 0:02:36.3]}
18. b5 {[%clk 0:02:41.4]} 18... c5 {[%clk 0:02:35.3]} 19. a4 {[%clk 0:02:38.8]}
19... Nf7 {[%clk 0:02:19.2]} 20. a5 {[%clk 0:02:33.8]} 20... Bh6 {[%clk
0:02:18.5]} 21. Bg1 {[%clk 0:02:11.2]} 21... fxe4 {[%clk 0:02:11.8]} 22. dxe4
{[%clk 0:02:08.1]} 22... Ng5 {[%clk 0:02:07.3]} 23. g4 {[%clk 0:02:08.6]} 23...
Rf7 {[%clk 0:01:55.5]} 24. Qc3 {[%clk 0:02:07.2]} 24... Ref8 {[%clk 0:01:45.8]}
25. b6 {[%clk 0:01:22.7]} 25... a6 {[%clk 0:01:43.4]} 26. h3 {[%clk 0:00:58.4]}
26... Rxf3 {[%clk 0:01:31.2]} 27. Rxf3 {[%clk 0:00:59.3]} 27... Rxf3 {[%clk
0:01:31.5]} 28. Qxf3 {[%clk 0:00:54.4]} 28... Nxf3 {[%clk 0:01:32.4]} 29. Kxf3
{[%clk 0:00:55.3]} 29... Qa4 {[%clk 0:01:31.8]} 30. Rf1 {[%clk 0:00:45.8]} 30...
Qb3+ {[%clk 0:01:18.9]} 31. Kg2 {[%clk 0:00:44.6]} 31... Qc2 {[%clk 0:01:18.2]}
32. Kf3 {[%clk 0:00:44.6]} 32... Qd3+ {[%clk 0:01:17.5]} 33. Kf2 {[%clk
0:00:45.2]} 33... Be3+ {[%clk 0:01:16]} 0-1

[Event "*** SCC Grand Prix: Titled Tuesday Blitz"]
[Site "Chess.com"]
[Date "2020.07.07"]
[Round "2"]
[White "Vesper2018"]
[Black "Orange_Ghost"]
[Result "1-0"]
[WhiteElo "2547"]
[BlackElo "2792"]
[TimeControl "180+1"]
[EndTime "10:16:41 PDT"]
[Termination "Vesper2018 won by resignation"]

1. e4 {[%clk 0:03:00]} 1... e6 {[%clk 0:02:57.5]} 2. d4 {[%clk 0:02:59.6]} 2...
d5 {[%clk 0:02:57]} 3. e5 {[%clk 0:02:59.8]} 3... c5 {[%clk 0:02:56.6]} 4. c3
{[%clk 0:03:00.2]} 4... Qb6 {[%clk 0:02:56.5]} 5. Nf3 {[%clk 0:03:00.1]} 5...
Nc6 {[%clk 0:02:56.7]} 6. Be2 {[%clk 0:02:59.7]} 6... cxd4 {[%clk 0:02:54.8]} 7.
cxd4 {[%clk 0:02:57.5]} 7... Nge7 {[%clk 0:02:53.7]} 8. b3 {[%clk 0:02:41.7]}
8... Nf5 {[%clk 0:02:50.8]} 9. Bb2 {[%clk 0:02:41.1]} 9... Bb4+ {[%clk 0:02:37]}
10. Kf1 {[%clk 0:02:38.2]} 10... h5 {[%clk 0:02:23.7]} 11. h4 {[%clk 0:02:26.6]}
11... Bd7 {[%clk 0:02:11.5]} 12. a3 {[%clk 0:02:18.4]} 12... Be7 {[%clk
0:02:10.6]} 13. b4 {[%clk 0:02:18.4]} 13... f6 {[%clk 0:01:50.4]} 14. Nc3 {[%clk
0:02:01.3]} 14... Ncxd4 {[%clk 0:01:41.9]} 15. Nxd5 {[%clk 0:01:52.9]} 15...
exd5 {[%clk 0:01:39.5]} 16. Nxd4 {[%clk 0:01:50.2]} 16... fxe5 {[%clk
0:01:13.5]} 17. Nxf5 {[%clk 0:01:46.3]} 17... Bxf5 {[%clk 0:01:14.4]} 18. Qxd5
{[%clk 0:01:46.1]} 18... Rf8 {[%clk 0:00:48.5]} 19. Bb5+ {[%clk 0:01:42.5]}
19... Qxb5+ {[%clk 0:00:47]} 20. Qxb5+ {[%clk 0:01:42]} 20... Bd7 {[%clk
0:00:47.9]} 21. Qxe5 {[%clk 0:01:36.7]} 21... Kf7 {[%clk 0:00:44.9]} 22. Qxg7+
{[%clk 0:01:36.1]} 22... Ke8 {[%clk 0:00:44.6]} 23. Re1 {[%clk 0:01:35.4]} 23...
Rf7 {[%clk 0:00:42.9]} 24. Qh8+ {[%clk 0:01:34.9]} 24... Rf8 {[%clk 0:00:43]}
25. Qxh5+ {[%clk 0:01:34.3]} 25... Kd8 {[%clk 0:00:43.1]} 26. Qd5 {[%clk
0:01:27.4]} 26... Ke8 {[%clk 0:00:40.3]} 27. Qe4 {[%clk 0:01:24.3]} 27... Rf7
{[%clk 0:00:40.3]} 28. Bf6 {[%clk 0:01:24.4]} 28... Bc6 {[%clk 0:00:40.4]} 29.
Qe3 {[%clk 0:01:20.5]} 29... Kd7 {[%clk 0:00:36.2]} 30. Bxe7 {[%clk 0:01:18.8]}
30... Rg8 {[%clk 0:00:37.1]} 31. Qe6+ {[%clk 0:01:17.1]} 31... Ke8 {[%clk
0:00:37.3]} 1-0

[Event "*** SCC Grand Prix: Titled Tuesday Blitz"]
[Site "Chess.com"]
[Date "2020.07.07"]
[Round "2"]
[White "kakakz"]
[Black "metalbattler"]
[Result "1-0"]
[WhiteElo "2382"]
[BlackElo "2039"]
[TimeControl "180+1"]
[EndTime "10:16:43 PDT"]
[Termination "kakakz won by resignation"]

1. d4 {[%clk 0:03:00]} 1... d5 {[%clk 0:02:59.4]} 2. Nf3 {[%clk 0:02:59.8]} 2...
Nf6 {[%clk 0:02:58.8]} 3. g3 {[%clk 0:02:59.9]} 3... c6 {[%clk 0:02:57.1]} 4.
Bg2 {[%clk 0:03:00]} 4... Bg4 {[%clk 0:02:57.6]} 5. h3 {[%clk 0:02:58.8]} 5...
Bh5 {[%clk 0:02:57.2]} 6. O-O {[%clk 0:02:58.9]} 6... e6 {[%clk 0:02:57.4]} 7.
c4 {[%clk 0:02:59.1]} 7... Bd6 {[%clk 0:02:57.1]} 8. Nc3 {[%clk 0:02:58.4]} 8...
Nbd7 {[%clk 0:02:56.8]} 9. Qb3 {[%clk 0:02:53.8]} 9... Qb6 {[%clk 0:02:39.6]}
10. c5 {[%clk 0:02:51.7]} 10... Qxb3 {[%clk 0:02:38.9]} 11. axb3 {[%clk
0:02:51.5]} 11... Bc7 {[%clk 0:02:39.4]} 12. b4 {[%clk 0:02:45.9]} 12... e5
{[%clk 0:02:34.2]} 13. dxe5 {[%clk 0:02:29.9]} 13... Nxe5 {[%clk 0:02:35.1]} 14.
Nd4 {[%clk 0:02:29.8]} 14... Ned7 {[%clk 0:01:17.4]} 15. b5 {[%clk 0:02:24.1]}
15... Be5 {[%clk 0:01:07.2]} 16. bxc6 {[%clk 0:02:02.7]} 16... Bxd4 {[%clk
0:01:01.4]} 17. cxb7 {[%clk 0:01:57]} 17... Rb8 {[%clk 0:00:53.2]} 18. c6 {[%clk
0:01:56.2]} 18... Nb6 {[%clk 0:00:43.5]} 19. Bf4 {[%clk 0:01:34.5]} 19... O-O
{[%clk 0:00:30.3]} 20. Bxb8 {[%clk 0:01:26.3]} 20... Rxb8 {[%clk 0:00:29.4]} 21.
Rxa7 {[%clk 0:01:25.5]} 21... Kf8 {[%clk 0:00:17.7]} 22. c7 {[%clk 0:01:23.8]}
1-0

[Event "*** SCC Grand Prix: Titled Tuesday Blitz"]
[Site "Chess.com"]
[Date "2020.07.07"]
[Round "2"]
[White "Joseacorrea"]
[Black "stolencandy13"]
[Result "1/2-1/2"]
[WhiteElo "1911"]
[BlackElo "2349"]
[TimeControl "180+1"]
[EndTime "10:16:47 PDT"]
[Termination "Game drawn by agreement"]

1. c4 {[%clk 0:02:59.6]} 1... e5 {[%clk 0:02:58.5]} 2. Nc3 {[%clk 0:03:00.2]}
2... Nc6 {[%clk 0:02:57.8]} 3. g3 {[%clk 0:03:00.7]} 3... Nf6 {[%clk 0:02:57.6]}
4. Bg2 {[%clk 0:03:01.2]} 4... Be7 {[%clk 0:02:55.5]} 5. e3 {[%clk 0:03:01.3]}
5... O-O {[%clk 0:02:56.4]} 6. Nge2 {[%clk 0:03:01.9]} 6... d6 {[%clk
0:02:51.2]} 7. O-O {[%clk 0:03:02.4]} 7... Be6 {[%clk 0:02:51.1]} 8. b3 {[%clk
0:03:02.1]} 8... Qd7 {[%clk 0:02:48.5]} 9. Re1 {[%clk 0:02:58.9]} 9... Rad8
{[%clk 0:02:34.3]} 10. d4 {[%clk 0:02:58.9]} 10... d5 {[%clk 0:02:30.5]} 11.
cxd5 {[%clk 0:02:48.7]} 11... Nxd5 {[%clk 0:02:27.8]} 12. Nxd5 {[%clk
0:02:34.7]} 12... Bxd5 {[%clk 0:02:27.5]} 13. e4 {[%clk 0:02:35]} 13... Be6
{[%clk 0:02:06.6]} 14. d5 {[%clk 0:02:34.6]} 14... Bg4 {[%clk 0:02:01.8]} 15. f3
{[%clk 0:02:28.1]} 15... Bc5+ {[%clk 0:01:46.6]} 16. Kh1 {[%clk 0:02:21.8]}
16... Bh3 {[%clk 0:01:42.5]} 17. Qc2 {[%clk 0:02:18]} 17... Bxg2+ {[%clk
0:01:40.1]} 18. Kxg2 {[%clk 0:02:17.7]} 18... Nb4 {[%clk 0:01:21.6]} 19. Qxc5
{[%clk 0:02:17]} 19... Nd3 {[%clk 0:01:21.9]} 20. Qc3 {[%clk 0:02:17.2]} 20...
Nxe1+ {[%clk 0:01:21.5]} 21. Qxe1 {[%clk 0:02:18]} 21... f5 {[%clk 0:01:16.8]}
22. Ba3 {[%clk 0:02:08.3]} 22... fxe4 {[%clk 0:00:51.2]} 23. Bxf8 {[%clk
0:01:54.9]} 23... exf3+ {[%clk 0:00:51.1]} 24. Kxf3 {[%clk 0:01:55.8]} 24...
Qxd5+ {[%clk 0:00:48.4]} 25. Kf2 {[%clk 0:01:34.1]} 25... Rxf8+ {[%clk
0:00:48.8]} 26. Kg1 {[%clk 0:01:34.6]} 26... Qc5+ {[%clk 0:00:40.8]} 27. Kg2
{[%clk 0:01:16.5]} 27... Qc6+ {[%clk 0:00:40]} 28. Kg1 {[%clk 0:01:15.7]} 28...
Qb6+ {[%clk 0:00:36.1]} 29. Kg2 {[%clk 0:01:14.2]} 1/2-1/2

[Event "*** SCC Grand Prix: Titled Tuesday Blitz"]
[Site "Chess.com"]
[Date "2020.07.07"]
[Round "2"]
[White "fabianvivasz"]
[Black "MiroVlasenko"]
[Result "0-1"]
[WhiteElo "2274"]
[BlackElo "2637"]
[TimeControl "180+1"]
[EndTime "10:16:48 PDT"]
[Termination "MiroVlasenko won on time"]

1. e4 {[%clk 0:03:00.9]} 1... c5 {[%clk 0:02:57.5]} 2. Nf3 {[%clk 0:02:58.1]}
2... a6 {[%clk 0:02:57.2]} 3. c3 {[%clk 0:02:46.5]} 3... d5 {[%clk 0:02:56.7]}
4. exd5 {[%clk 0:02:36.6]} 4... Qxd5 {[%clk 0:02:56.4]} 5. d4 {[%clk 0:02:37.2]}
5... Bg4 {[%clk 0:02:55.4]} 6. Be2 {[%clk 0:02:35.8]} 6... e6 {[%clk 0:02:54.5]}
7. Be3 {[%clk 0:02:30.6]} 7... cxd4 {[%clk 0:02:53.4]} 8. cxd4 {[%clk
0:02:09.3]} 8... Nf6 {[%clk 0:02:52.2]} 9. Nc3 {[%clk 0:02:08.7]} 9... Qd6
{[%clk 0:02:52.2]} 10. h3 {[%clk 0:02:04.9]} 10... Bh5 {[%clk 0:02:51.7]} 11.
Qb3 {[%clk 0:01:56]} 11... Qb4 {[%clk 0:02:48.6]} 12. Qc2 {[%clk 0:01:39.7]}
12... Nc6 {[%clk 0:02:43.2]} 13. a3 {[%clk 0:01:35.2]} 13... Qd6 {[%clk
0:02:41.1]} 14. O-O {[%clk 0:01:31.7]} 14... Be7 {[%clk 0:02:38.4]} 15. Rad1
{[%clk 0:01:29.2]} 15... O-O {[%clk 0:02:33.4]} 16. Ne4 {[%clk 0:01:19.4]} 16...
Nxe4 {[%clk 0:02:26.7]} 17. Qxe4 {[%clk 0:01:20.3]} 17... Bg6 {[%clk 0:02:25.8]}
18. Qf4 {[%clk 0:01:04.4]} 18... Qxf4 {[%clk 0:02:23.3]} 19. Bxf4 {[%clk
0:01:05.3]} 19... Rfd8 {[%clk 0:02:19.5]} 20. Bc7 {[%clk 0:00:56.5]} 20... Rd7
{[%clk 0:02:11.7]} 21. Bb6 {[%clk 0:00:54.7]} 21... Bf6 {[%clk 0:02:10]} 22. Rd2
{[%clk 0:00:26.9]} 22... Be4 {[%clk 0:02:07.5]} 23. Rfd1 {[%clk 0:00:26.9]}
23... Bd5 {[%clk 0:02:06]} 24. b4 {[%clk 0:00:19.1]} 24... g6 {[%clk 0:02:01.5]}
25. g4 {[%clk 0:00:07.8]} 25... g5 {[%clk 0:01:53.2]} 26. Kh2 {[%clk 0:00:04.8]}
26... Kg7 {[%clk 0:01:51]} 27. Kg3 {[%clk 0:00:04.1]} 27... h6 {[%clk
0:01:49.3]} 28. Rh1 {[%clk 0:00:02.5]} 28... Rc8 {[%clk 0:01:45.6]} 29. Rhd1
{[%clk 0:00:02]} 29... Ne7 {[%clk 0:01:40.9]} 0-1

[Event "*** SCC Grand Prix: Titled Tuesday Blitz"]
[Site "Chess.com"]
[Date "2020.07.07"]
[Round "2"]
[White "Usurpov"]
[Black "timedothwasteme"]
[Result "1-0"]
[WhiteElo "2415"]
[BlackElo "2132"]
[TimeControl "180+1"]
[EndTime "10:16:53 PDT"]
[Termination "Usurpov won by resignation"]

1. e4 {[%clk 0:03:00.9]} 1... c5 {[%clk 0:02:59.4]} 2. Nf3 {[%clk 0:03:00.6]}
2... Nc6 {[%clk 0:02:58.9]} 3. d4 {[%clk 0:03:00.3]} 3... cxd4 {[%clk
0:02:58.1]} 4. Nxd4 {[%clk 0:03:01.2]} 4... Nf6 {[%clk 0:02:57.3]} 5. Nc3 {[%clk
0:03:01.4]} 5... g6 {[%clk 0:02:56.8]} 6. Nxc6 {[%clk 0:03:00.4]} 6... bxc6
{[%clk 0:02:56.6]} 7. e5 {[%clk 0:03:00.7]} 7... Ng8 {[%clk 0:02:55.4]} 8. Bc4
{[%clk 0:02:59.4]} 8... Bg7 {[%clk 0:02:56]} 9. Qf3 {[%clk 0:02:58.1]} 9... f5
{[%clk 0:02:56.6]} 10. Bf4 {[%clk 0:02:53.4]} 10... Qa5 {[%clk 0:02:53.5]} 11.
O-O-O {[%clk 0:02:27.6]} 11... e6 {[%clk 0:02:43.4]} 12. h4 {[%clk 0:02:15.8]}
12... h6 {[%clk 0:02:30.1]} 13. Rhe1 {[%clk 0:01:57.2]} 13... Ne7 {[%clk
0:02:28.9]} 14. Bb3 {[%clk 0:01:32.6]} 14... Nd5 {[%clk 0:02:01.5]} 15. Bd2
{[%clk 0:01:31.9]} 15... Qc7 {[%clk 0:01:56.9]} 16. Qg3 {[%clk 0:01:24.8]} 16...
Kf7 {[%clk 0:01:52]} 17. Kb1 {[%clk 0:01:11.9]} 17... a5 {[%clk 0:01:37.1]} 18.
Na4 {[%clk 0:01:07.5]} 18... Ba6 {[%clk 0:01:27.1]} 19. Nc5 {[%clk 0:01:01.7]}
19... a4 {[%clk 0:01:22.6]} 20. Bxa4 {[%clk 0:00:57.1]} 20... Bb5 {[%clk
0:01:21.3]} 21. Bb3 {[%clk 0:00:54.5]} 21... Bf8 {[%clk 0:01:10.6]} 22. Nd3
{[%clk 0:00:49.5]} 22... Bxd3 {[%clk 0:01:07.8]} 23. Qxd3 {[%clk 0:00:47.6]}
23... Bc5 {[%clk 0:01:01.7]} 24. Re2 {[%clk 0:00:44.7]} 24... Rhb8 {[%clk
0:00:53.2]} 25. Bxh6 {[%clk 0:00:43]} 25... Nb4 {[%clk 0:00:49.3]} 26. Qxd7+
{[%clk 0:00:41.7]} 1-0